Workbook

Sheet opći dio
A3: POLUGODIŠNJI IZVJEŠTAJ O IZVRŠENJU FINANCIJSKOG PLANA ZA 2023. GODINU
A4: OPĆI DIO
A5: A. SAŽETAK RAČUNA PRIHODA I RASHODA | F5: u EUR-ima
F6: IZVRŠENJE 1.1.-30.6.2022. | G6: GODIŠNJI PLAN 2023. | H6: IZVRŠENJE 1.1.-30.6.2023.
A7: PRIHODI POSLOVANJA | F7: =+prihodi!B6 -> 1137026.45 | G7: =+prihodi!C6 -> 3657046.27 | H7: =+prihodi!D6 -> 1342118.77
A8: PRIHODI OD PRODAJE NEFINANCIJSKE IMOVINE
A9: PRIHODI UKUPNO | F9: =SUM(F7:F8) -> 1137026.45 | G9: =SUM(G7:G8) -> 3657046.27 | H9: 1342118.77
A10: RASHODI POSLOVANJA | F10: =+rashodi!B9+rashodi!B17+rashodi!B154+rashodi!B162+rashodi!B191 -> 1140683.38 | G10: =+rashodi!C9+rashodi!C17+rashodi!C154+rashodi!C162+rashodi!C191 -> 3625400.33 | H10: =+rashodi!D9+rashodi!D17+rashodi!D154+rashodi!D162+rashodi!D191 -> 1340635.44
A11: RASHODI ZA NABAVU NEFINANCIJSKE IMOVINE | F11: =+rashodi!B196 -> 9302.4 | G11: =+rashodi!C196 -> 15808.51 | H11: =+rashodi!D196 -> 2976.17
A12: RASHODI UKUPNO | F12: =SUM(F10:F11) -> 1149985.78 | G12: =SUM(G10:G11) -> 3641208.84 | H12: 1343611.61
A13: RAZLIKA - VIŠAK / MANJAK | F13: =F9-F12 -> -12959.33 | G13: =G9-G12 -> 15837.43 | H13: -1492.84
A16: B. SAŽETAK RAČUNA FINANCIRANJA
A17: RAČUN FINANCIRANJA | F17: IZVRŠENJE 1.1.-30.6.2022. | G17: GODIŠNJI PLAN 2023. | H17: IZVRŠENJE 1.1.-30.6.2023.
A18: PRIMICI OD FINANCIJSKE IMOVINE I ZADUŽIVANJA
A19: IZDACI ZA FINANCIJSKU IMOVINU I OTPLATE ZAJMOVA
A20: NETO FINANCIRANJE | F20: =F18-F19 -> 0 | G20: =G18-G19 -> 0 | H20: =H18-H19 -> 0
A22: VIŠAK / MANJAK + NETO FINANCIRANJE | F22: 0 | G22: 0 | H22: 0
A26: C. PRENESENI VIŠAK ILI PRENESENI MANJAK I VIŠEGODIŠNJI PLAN URAVNOTEŽENJA
A27: VIŠKOVI / MANJKOVI | F27: IZVRŠENJE 1.1.-30.6.2022. | G27: GODIŠNJI PLAN 2023. | H27: IZVRŠENJE 1.1.-30.6.2023.
A28: UKUPAN DONOS VIŠKA/MANJKA IZ PRETHODNE(IH) GODINA | F28: =+F29+F30 -> -6912.94 | G28: =+G29+G30 -> -15837.43 | H28: -15837.43
A29: VIŠAK IZ PRETHODNE(IH) GODINA KOJI ĆE SE RASPOREDITI | F29: 18677.56 | G29: 15316.8 | H29: 15316.8
A30: MANJAK IZ PRETHODNE(IH) GODINA KOJI ĆE SE POKRITI | F30: -25590.5 | G30: -31154.23 | H30: -31154.23
A33: Napomena: Redak UKUPAN DONOS VIŠKA/MANJKA IZ PRETHODNE(IH) GODINA služi kao informacija i ne uzima se u obzir kod uravnoteženja proračuna, već se proračun uravnotežuje retkom VIŠAK/MANJAK IZ PRETHODNE(IH) GODINE KOJI ĆE SE POKRITI/RASPOREDITI.

Sheet rashodi
A1: RASHODI POSLOVANJA
A2: II. POSEBNI DIO KONSOLIDIRANOG PRORAČUNA za razdoblje od 01.01.2023. do 30.06.2023. | F2: u EUR-ima
A3: Oznaka | B3: Ostvarenje preth. god. | C3: Godišnji plan/ Rebalans | D3: Ostvarenje | E3: Indeks | F3: Indeks
B4: 1 | C4: 2 | D4: 3 | E4: 4=3/1*100 | F4: 5=3/2*100
A5: SVEUKUPNO | B5: 1149985.78 | C5: =+C6 -> 3641208.84 | D5: =+D6 -> 1343611.61 | E5: =+D5/B5*100 -> 116.8372369 | F5: =+D5/C5*100 -> 36.90015237
A6: MEDICINSKA ŠKOLA U RIJECI | B6: 1149985.78 | C6: =+C9+C17+C154+C162+C191+C196 -> 3641208.84 | D6: =+D9+D17+D154+D191+D196 -> 1343611.61 | E6: =+D6/B6*100 -> 116.8372369 | F6: =+D6/C6*100 -> 36.90015237
A7: Glava: 5 ŽUPANIJSKE USTANOVE SREDNJEG ŠKOLSTVA | B7: 1149985.78 | C7: =+C6 -> 3641208.84 | D7: =+D6 -> 1343611.61 | E7: 116.8372369 | F7: 36.90015237
A8: 17546 MEDICINSKA ŠKOLA RIJEKA | B8: 1149985.78 | C8: =+C6 -> 3641208.84 | D8: =+D6 -> 1343611.61 | E8: 116.8372369 | F8: 36.90015237
A9: A 530605 Natjecanja i smotre | B9: 230.94 | C9: 610.11 | D9: 610.11 | E9: 264.1855027 | F9: 100
A10: Izvor: 111 Porezni i ostali prihodi | B10: 230.94 | C10: 610.11 | D10: 610.11 | E10: 264.1855027 | F10: 100
A11: 32 Materijalni rashodi | B11: 230.94 | C11: 610.11 | D11: 610.11 | E11: 264.1855027 | F11: 100
A12: 322 Rashodi za materijal i energiju | B12: 24.69 | C12: 68 | D12: 68 | E12: 275.4151478 | F12: 100
A13: 3221 Uredski materijal i ostali materijalni rashodi | C13: 16 | D13: 16 | F13: 100
A14: 3222 Materijal i sirovine | B14: 24.69 | C14: 52 | D14: 52 | E14: 210.6115836 | F14: 100
A15: 329 Ostali nespomenuti rashodi poslovanja | B15: 206.25 | C15: 542.11 | D15: 542.11 | E15: 262.8412121 | F15: 100
A16: 3291 Naknade za rad predstavničkih i izvršnih tijela, povjerenstava i slično | B16: 206.25 | C16: 542.11 | D16: 542.11 | E16: 262.8412121 | F16: 100
A17: A 550101 Osiguravanje uvjeta rada | B17: 1140452.44 | C17: =+C18+C23+C36+C48+C76+C103+C112+C141+C148 -> 2336530.7 | D17: =+D18+D23+D36+D48+D76+D103+D112+D141+D148 -> 1336960.51 | E17: 117.2307115 | F17: 57.21989914
A18: Izvor: 181 Prenesena sredstva - opći prihodi i primici | C18: =+C19 -> 107597.05 | D18: =+D22 -> 83736.5 | F18: 77.82415968
A19: 32 Materijalni rashodi | C19: =+C20 -> 107597.05 | F19: 0
A20: 322 Rashodi za materijal i energiju | C20: =+C21+C22 -> 107597.05 | F20: 0
A21: 3223 Energija | C21: 20000 | F21: 0
A22: 3232 Usluge tekućeg i investicijskog održavanja | C22: 87597.05 | D22: 83736.5
A23: Izvor: 321 Vlastiti prihodi - proračunski korisnici | B23: 2855.51 | C23: 8970.02 | D23: 2602.67 | E23: 91.14553968 | F23: 29.01520844
A24: 31 Rashodi za zaposlene | B24: 1875.37 | C24: 2500 | D24: 693.72 | E24: 36.99110042 | F24: 27.7488
A25: 312 Ostali rashodi za zaposlene | B25: 1875.37 | C25: 2500 | D25: 693.72 | E25: 36.99110042 | F25: 27.7488
A26: 3121 Ostali rashodi za zaposlene | B26: 1875.37 | C26: 2500 | D26: 693.72 | E26: 36.99110042 | F26: 27.7488
A27: 32 Materijalni rashodi | B27: 980.14 | C27: 6470.02 | D27: 1908.95 | E27: 194.762993 | F27: 29.50454558
A28: 321 Naknade troškova zaposlenima | B28: 980.14 | C28: 3135.97 | D28: 1808.95 | E28: 184.5603689 | F28: 57.68390641
A29: 3211 Službena putovanja | B29: 980.14 | C29: 3135.97 | D29: 1808.95 | E29: 184.5603689 | F29: 57.68390641
A30: 322 Rashodi za materijal i energiju | C30: 2000 | F30: 0
A31: 3222 Materijal i sirovine | C31: 2000 | F31: 0
A32: 323 Rashodi za usluge | C32: 1000 | F32: 0
A33: 3237 Intelektualne i osobne usluge | C33: 1000 | F33: 0
A34: 324 Naknade troškova osobama izvan radnog odnosa | C34: 334.05 | D34: 100 | F34: 29.93563838
A35: 3241 Naknade troškova osobama izvan radnog odnosa | C35: 334.05 | D35: 100 | F35: 29.93563838
A36: Izvor: 383 Prenesena sredstva - vlastiti prihodi proračunskih korisnika | C36: 7291.46 | D36: 2533.51 | F36: 34.74626481
A37: 31 Rashodi za zaposlene | C37: 500 | D37: 500 | F37: 100
A38: 312 Ostali rashodi za zaposlene | C38: 500 | D38: 500 | F38: 100
A39: 3121 Ostali rashodi za zaposlene | C39: 500 | D39: 500 | F39: 100
A40: 32 Materijalni rashodi | C40: 6791.46 | D40: 2033.51 | F40: 29.94216266
A41: 321 Naknade troškova zaposlenima | C41: 500 | D41: 354.52 | F41: 70.904
A42: 3211 Službena putovanja | C42: 500 | D42: 354.52 | F42: 70.904
A43: 322 Rashodi za materijal i energiju | C43: 500 | D43: 266.99 | F43: 53.398
A44: 3221 Uredski materijal i ostali materijalni rashodi | C44: 500 | D44: 266.99 | F44: 53.398
A45: 323 Rashodi za usluge | C45: 5791.46 | D45: 1412 | F45: 24.3807261
A46: 3232 Usluge tekućeg i investicijskog održavanja | C46: 2500 | D46: 1412 | F46: 56.48
A47: 3237 Intelektualne i osobne usluge | C47: 3291.46 | F47: 0
A48: Izvor: 431 Prihodi za posebne namjene - proračunski korisnici | B48: 3675.78 | C48: 16207.07 | D48: 7650.68 | E48: 208.1375926 | F48: 47.2058182
A49: 32 Materijalni rashodi | B49: 3674.01 | C49: 16067.43 | D49: 7611.04 | E49: 207.1589353 | F49: 47.36936772
A50: 321 Naknade troškova zaposlenima | B50: 605.22 | C50: 942.33 | D50: 102.7 | E50: 16.96903605 | F50: 10.8985175
A51: 3213 Stručno usavršavanje zaposlenika | B51: 534.08 | C51: 663.61 | D51: 85.5 | E51: 16.00883763 | F51: 12.88407348
A52: 3214 Ostale naknade troškova zaposlenima | B52: 71.14 | C52: 278.72 | D52: 17.2 | E52: 24.17767782 | F52: 6.171067738
A53: 322 Rashodi za materijal i energiju | B53: 910.11 | C53: 6696.71 | D53: 3151.57 | E53: 346.2845151 | F53: 47.0614675
A54: 3221 Uredski materijal i ostali materijalni rashodi | B54: 626.85 | C54: 1327.23 | D54: 617.59 | E54: 98.52277259 | F54: 46.53225138
A55: 3222 Materijal i sirovine | B55: 74.18 | C55: 2654.46 | D55: 2131.6 | E55: 2873.550822 | F55: 80.30258508
A56: 3224 Materijal i dijelovi za tekuće i investicijsko održavanje | B56: 209.08 | C56: 1194.51 | D56: 104.9 | E56: 50.1721829 | F56: 8.781843601
A57: 3225 Sitni inventar i auto gume | C57: 1520.51 | D57: 297.48 | F57: 19.56448823
A58: 323 Rashodi za usluge | B58: 1139 | C58: 7253.34 | D58: 3327.38 | E58: 292.1316945 | F58: 45.87376298
A59: 3232 Usluge tekućeg i investicijskog održavanja | C59: 1327.23 | D59: 292.45 | F59: 22.03461344
A60: 3233 Usluge promidžbe i informiranja | C60: 248.85 | D60: 248.85 | F60: 100
A61: 3235 Zakupnine i najamnine | B61: 1069.98 | C61: 2057.2 | D61: 704.52 | E61: 65.84422139 | F61: 34.24654871
A62: 3236 Zdravstvene i veterinarske usluge | C62: 100 | F62: 0
A63: 3237 Intelektualne i osobne usluge | C63: 1741.99 | F63: 0
A64: 3238 Računalne usluge | C64: 398.17 | F64: 0
A65: 3239 Ostale usluge | B65: 69.02 | C65: 1379.9 | D65: 2081.56 | E65: 3015.879455 | F65: 150.8486122
A66: 324 Naknade troškova osobama izvan radnog odnosa | B66: 477.46 | C66: 345.08 | D66: 135 | E66: 28.27461986 | F66: 39.12136316
A67: 3241 Naknade troškova osobama izvan radnog odnosa | B67: 477.46 | C67: 345.08 | D67: 135 | E67: 28.27461986 | F67: 39.12136316
A68: 329 Ostali nespomenuti rashodi poslovanja | B68: 542.22 | C68: 829.97 | D68: 894.39 | E68: 164.9496514 | F68: 107.7617263
A69: 3293 Reprezentacija | C69: 100 | D69: 55.49 | F69: 55.49
A70: 3295 Pristojbe i naknade | B70: 33.18 | C70: 66.36 | E70: 0 | F70: 0
A71: 3299 Ostali nespomenuti rashodi poslovanja | B71: 509.04 | C71: 663.61 | D71: 838.9 | E71: =+D71/B71*100 -> 164.8004086 | F71: =+D71/C71*100 -> 126.414611
A72: 34 Financijski rashodi | B72: 1.77 | C72: 139.64 | D72: 39.64 | E72: 2239.548023 | F72: 28.38728158
A73: 343 Ostali financijski rashodi | B73: 1.77 | C73: 139.64 | D73: 39.64 | E73: 2239.548023 | F73: 28.38728158
A74: 3431 Bankarske usluge i usluge platnog prometa | C74: 100 | F74: 0
A75: 3433 Zatezne kamate | B75: 1.77 | C75: 39.64 | D75: 39.64 | E75: 2239.548023 | F75: 100
A76: Izvor: 442 Prihodi za decentralizirane funkcije - SŠ | B76: 91284.39 | C76: 149579 | D76: 110225.09 | E76: 120.7491116 | F76: 73.69021721
A77: 32 Materijalni rashodi | B77: 90876.66 | C77: 149114.47 | D77: 109860.15 | E77: 120.889291 | F77: 73.67504307
A78: 321 Naknade troškova zaposlenima | B78: 23809.78 | C78: 48673.51 | D78: 37296.19 | E78: 156.6423125 | F78: 76.62523208
A79: 3211 Službena putovanja | B79: 3266.93 | C79: 5875.63 | D79: 5061.68 | E79: 154.9368979 | F79: 86.14701743
A80: 3212 Naknade za prijevoz, za rad na terenu i odvojeni život | B80: 20332.49 | C80: 42662.38 | D80: 32099.01 | E80: 157.8705314 | F80: 75.23961392
A81: 3213 Stručno usavršavanje zaposlenika | B81: 210.36 | C81: 135.5 | D81: 135.5 | E81: 64.41338658 | F81: 100
A82: 322 Rashodi za materijal i energiju | B82: 42244.61 | C82: 64493.93 | D82: 52333.38 | E82: 123.8817923 | F82: 81.14465966
A83: 3221 Uredski materijal i ostali materijalni rashodi | B83: 7362.57 | C83: 10565.91 | D83: 7160.24 | E83: 97.25191068 | F83: 67.7673764
A84: 3222 Materijal i sirovine | B84: 3183.83 | C84: 4281.44 | D84: 4279.87 | E84: 134.4252049 | F84: 99.96333009
A85: 3223 Energija | B85: 29119.85 | C85: 47712.85 | D85: 39262.96 | E85: 134.8322879 | F85: 82.29011681
A86: 3224 Materijal i dijelovi za tekuće i investicijsko održavanje | B86: 2089.97 | C86: 1117.54 | D86: 1117.55 | E86: 53.47205941 | F86: 100.0008948
A87: 3225 Sitni inventar i auto gume | B87: 103.51 | C87: 218.94 | D87: 218.94 | E87: 211.5157956 | F87: 100
A88: 3227 Službena, radna i zaštitna odjeća i obuća | B88: 384.88 | C88: 597.25 | D88: 293.82 | E88: 76.34067761 | F88: 49.19547928
A89: 323 Rashodi za usluge | B89: 24789.09 | C89: 35365.15 | D89: 20195.58 | E89: 81.46963039 | F89: 57.10587966
A90: 3231 Usluge telefona, pošte i prijevoza | B90: 2248.81 | C90: 3450.79 | D90: 1939.38 | E90: 86.24027819 | F90: 56.20104382
A91: 3232 Usluge tekućeg i investicijskog održavanja | B91: 7810.41 | C91: 3984.41 | D91: 3193.75 | E91: 40.89093914 | F91: 80.15615863
A92: 3234 Komunalne usluge | B92: 11565.08 | C92: 22446.18 | D92: 11117.06 | E92: 96.12609684 | F92: 49.52762564
A93: 3236 Zdravstvene i veterinarske usluge | B93: 1045.02 | C93: 2408.12 | D93: 1725.43 | E93: 165.1097587 | F93: 71.65049914
A94: 3237 Intelektualne i osobne usluge | B94: 298.63 | C94: 315.22 | D94: 125 | E94: 41.85781737 | F94: 39.65484424
A95: 3238 Računalne usluge | B95: 1621.26 | C95: 2552.27 | D95: 1886.8 | E95: 116.3786191 | F95: 73.92634792
A96: 3239 Ostale usluge | B96: 199.88 | C96: 208.16 | D96: 208.16 | E96: 104.1424855 | F96: 100
A97: 329 Ostali nespomenuti rashodi poslovanja | B97: 33.18 | C97: 581.88 | D97: 35 | E97: 105.4852321 | F97: 6.014985908
A98: 3292 Premije osiguranja | C98: 546.88 | F98: 0
A99: 3294 Članarine i norme | B99: 33.18 | C99: 35 | D99: 35 | E99: 105.4852321 | F99: 100
A100: 34 Financijski rashodi | B100: 407.73 | C100: 464.53 | D100: 364.94 | E100: 89.50530989 | F100: 78.5611263
A101: 343 Ostali financijski rashodi | B101: 407.73 | C101: 464.53 | D101: 364.94 | E101: 89.50530989 | F101: 78.5611263
A102: 3431 Bankarske usluge i usluge platnog prometa | B102: 407.73 | C102: 464.53 | D102: 364.94 | E102: 89.50530989 | F102: 78.5611263
A103: Izvor: 483 Prenesena sredstva - namjenski prihodi - proračunski korisnici | B103: 20.18 | C103: 1800 | D103: 1184.32 | E103: 5868.780971 | F103: 65.79555556
A104: 32 Materijalni rashodi | B104: 20.18 | C104: 1800 | D104: 1184.32 | E104: 5868.780971 | F104: 65.79555556
A105: 322 Rashodi za materijal i energiju | B105: 20.18 | C105: 901.34 | D105: 1116.82 | E105: 5534.291378 | F105: 123.9066279
A106: 3222 Materijal i sirovine | C106: 300 | D106: 300 | F106: 100
A107: 3224 Materijal i dijelovi za tekuće i investicijsko održavanje | B107: 0.66 | C107: 300 | D107: 460.65 | E107: 69795.45455 | F107: 153.55
A108: 3225 Sitni inventar i auto gume | B108: 19.52 | C108: 301.34 | D108: 356.17 | E108: 1824.641393 | F108: 118.1953939
A109: 323 Rashodi za usluge | C109: 898.66 | D109: 67.5 | F109: 7.511183317
A110: 3232 Usluge tekućeg i investicijskog održavanja | C110: 398.66 | D110: 67.5 | F110: 16.93172127
A111: 3237 Intelektualne i osobne usluge | C111: 500 | F111: 0
A112: Izvor: 521 Pomoći - proračunski korisnici | B112: 1041065.18 | C112: 2043356.56 | D112: 1127834.31 | E112: 108.3346491 | F112: 55.19517896
A113: 31 Rashodi za zaposlene | B113: 1021178.12 | C113: 2029642.27 | D113: 1121441.65 | E113: 109.8184174 | F113: 55.25316784
A114: 311 Plaće (Bruto) | B114: 853319.46 | C114: 1684029.96 | D114: 933024.79 | E114: 109.3406202 | F114: 55.40428687
A115: 3111 Plaće za redovan rad | B115: 839637.95 | C115: 1660790.75 | D115: 911660.05 | E115: 108.5777566 | F115: 54.89313148
A116: 3113 Plaće za prekovremeni rad | B116: 13681.51 | C116: 23239.21 | D116: 21364.74 | E116: 156.1577633 | F116: 91.93402013
A117: 312 Ostali rashodi za zaposlene | B117: 26912.05 | C117: 70880.66 | D117: 34352.03 | E117: 127.6455342 | F117: 48.46460233
A118: 3121 Ostali rashodi za zaposlene | B118: 26912.05 | C118: 70880.66 | D118: 34352.03 | E118: 127.6455342 | F118: 48.46460233
A119: 313 Doprinosi na plaće | B119: 140946.61 | C119: 274731.65 | D119: 154064.83 | E119: 109.3072263 | F119: 56.07829677
A120: 3132 Doprinosi za obvezno zdravstveno osiguranje | B120: 140613.95 | C120: 273976.92 | D120: 154048.58 | E120: 109.5542654 | F120: 56.22684568
A121: 3133 Doprinosi za obvezno osiguranje u slučaju nezaposlenosti | B121: 332.66 | C121: 754.73 | D121: 16.25 | E121: 4.884867432 | F121: 2.153087859
A122: 32 Materijalni rashodi | B122: 12492.02 | C122: 12213.23 | D122: 4971.84 | E122: 39.8001284 | F122: 40.70864137
A123: 321 Naknade troškova zaposlenima | B123: 241.82 | C123: 123.84 | D123: 837.46 | E123: 346.3154412 | F123: 676.2435401
A124: 3211 Službena putovanja | B124: 241.82 | C124: 123.84 | D124: 837.46 | E124: 346.3154412 | F124: 676.2435401
A125: 322 Rashodi za materijal i energiju | C125: 330.89 | F125: 0
A126: 3222 Materijal i sirovine | C126: 330.89 | F126: 0
A127: 323 Rashodi za usluge | B127: 3060.67 | C127: 5308.91 | D127: 1157.02 | E127: 37.80283402 | F127: 21.79392757
A128: 3236 Zdravstvene i veterinarske usluge | B128: 1167.96 | E128: 0
A129: 3237 Intelektualne i osobne usluge | B129: 1892.71 | C129: 5308.91 | D129: 1157.02 | E129: 61.13033692 | F129: 21.79392757
A130: 324 Naknade troškova osobama izvan radnog odnosa | B130: 27.34 | C130: 74.32 | D130: 280.1 | E130: 1024.506218 | F130: 376.883746
A131: 3241 Naknade troškova osobama izvan radnog odnosa | B131: 27.34 | C131: 74.32 | D131: 280.1 | E131: 1024.506218 | F131: 376.883746
A132: 329 Ostali nespomenuti rashodi poslovanja | B132: 9162.19 | C132: 6375.27 | D132: 2697.26 | E132: 29.4390315 | F132: 42.30816891
A133: 3295 Pristojbe i naknade | B133: 4062.98 | C133: 5375.27 | D133: 2572.83 | E133: 63.32371806 | F133: 47.86420031
A134: 3296 Troškovi sudskih postupaka | B134: 5099.21 | C134: 1000 | D134: 124.43 | E134: 2.440181911 | F134: 12.443
A135: 34 Financijski rashodi | B135: 7395.04 | C135: 1368.34 | D135: 1373.97 | E135: =+D135/B135*100 -> 18.57961553 | F135: =+D135/C135*100 -> 100.4114474
A136: 343 Ostali financijski rashodi | B136: 7395.04 | C136: 1368.34 | D136: 1373.97 | E136: 18.57961553 | F136: 100.4114474
A137: 3433 Zatezne kamate | B137: 7395.04 | C137: 1368.34 | D137: 1373.97 | E137: 18.57961553 | F137: 100.4114474
A138: 37 Naknade građanima i kućanstvima na temelju osiguranja i druge naknade | C138: 132.72 | D138: 46.85 | F138: 35.29987945
A139: 372 Ostale naknade građanima i kućanstvima iz proračuna | C139: 132.72 | D139: 46.85 | F139: 35.29987945
A140: 3722 Naknade građanima i kućanstvima u naravi | C140: 132.72 | D140: 46.85 | F140: 35.29987945
A141: Izvor: 582 Prenesena sredstva - pomoći - proračunski korisnici | B141: 825.14 | C141: 409.82 | E141: 0 | F141: 0
A142: 32 Materijalni rashodi | B142: 825.14 | C142: 409.82 | E142: 0 | F142: 0
A143: 321 Naknade troškova zaposlenima | C143: 100 | F143: 0
A144: 3211 Službena putovanja | C144: 100 | F144: 0
A145: 322 Rashodi za materijal i energiju | B145: 825.14 | C145: 309.82 | E145: 0 | F145: 0
A146: 3221 Uredski materijal i ostali materijalni rashodi | B146: 179.09 | C146: 100 | E146: 0 | F146: 0
A147: 3222 Materijal i sirovine | B147: 646.05 | C147: 209.82 | E147: 0 | F147: 0
A148: Izvor: 621 Donacije - proračunski korisnici | B148: 726.26 | C148: 1319.72 | D148: 1193.43 | E148: 164.3254482 | F148: 90.43054587
A149: 32 Materijalni rashodi | B149: 726.26 | C149: 1319.72 | D149: 1193.43 | E149: 164.3254482 | F149: 90.43054587
A150: 321 Naknade troškova zaposlenima | B150: 429.49 | C150: 726.22 | D150: 609.99 | E150: 142.0265897 | F150: 83.99520806
A151: 3211 Službena putovanja | B151: 429.49 | C151: 726.22 | D151: 609.99 | E151: 142.0265897 | F151: 83.99520806
A152: 324 Naknade troškova osobama izvan radnog odnosa | B152: 296.77 | C152: 593.5 | D152: 583.44 | E152: 196.596691 | F152: 98.30497051
A153: 3241 Naknade troškova osobama izvan radnog odnosa | B153: 296.77 | C153: 593.5 | D153: 583.44 | E153: 196.596691 | F153: 98.30497051
A154: A 550216 Program "Zdravlje i higijena" | C154: 1200 | D154: 700 | F154: 58.33333333
A155: Izvor: 111 Porezni i ostali prihodi | C155: 1200 | D155: 700 | F155: 58.33333333
A156: 32 Materijalni rashodi | C156: 700 | D156: 700 | F156: 100
A157: 322 Rashodi za materijal i energiju | C157: 700 | D157: 700 | F157: 100
A158: 3221 Uredski materijal i ostali materijalni rashodi | C158: 700 | D158: 700 | F158: 100
A159: 37 Naknade građanima i kućanstvima na temelju osiguranja i druge naknade | C159: 500 | F159: 0
A160: 372 Ostale naknade građanima i kućanstvima iz proračuna | C160: 500 | F160: 0
A161: 3722 Naknade građanima i kućanstvima u naravi | C161: 500 | F161: 0
A162: K 550218 Unaprjeđenje infrastrukture Medicinske škole - regionalnog centra kompetentnosti u sektoru zdravstva - EU projekt | C162: 1287059.52 | F162: 0
A163: Izvor: 111 Porezni i ostali prihodi | C163: 300000 | F163: 0
A164: 45 Rashodi za dodatna ulaganja na nefinancijskoj imovini | C164: 300000 | F164: 0
A165: 451 Dodatna ulaganja na građevinskim objektima | C165: 300000 | F165: 0
A166: 4511 Dodatna ulaganja na građevinskim objektima | C166: 300000 | F166: 0
A167: Izvor: 521 Pomoći - proračunski korisnici | C167: 109366.2 | F167: 0
A168: 32 Materijalni rashodi | C168: 29.41 | F168: 0
A169: 323 Rashodi za usluge | C169: 29.41 | F169: 0
A170: 3233 Usluge promidžbe i informiranja | C170: 29.41 | F170: 0
A171: 42 Rashodi za nabavu proizvedene dugotrajne imovine | C171: 51764.02 | F171: 0
A172: 422 Postrojenja i oprema | C172: 51764.02 | F172: 0
A173: 4221 Uredska oprema i namještaj | C173: 1470.57 | F173: 0
A174: 4224 Medicinska i laboratorijska oprema | C174: 48822.88 | F174: 0
A175: 4227 Uređaji, strojevi i oprema za ostale namjene | C175: 1470.57 | F175: 0
A176: 45 Rashodi za dodatna ulaganja na nefinancijskoj imovini | C176: 57572.77 | F176: 0
A177: 451 Dodatna ulaganja na građevinskim objektima | C177: 57572.77 | F177: 0
A178: 4511 Dodatna ulaganja na građevinskim objektima | C178: 57572.77 | F178: 0
A179: Izvor: 525 Pomoći za provođenje EU projekata - proračunski korisnici | C179: 877693.32 | F179: 0
A180: 32 Materijalni rashodi | C180: 236.03 | F180: 0
A181: 323 Rashodi za usluge | C181: 236.03 | F181: 0
A182: 3233 Usluge promidžbe i informiranja | C182: 236.03 | F182: 0
A183: 42 Rashodi za nabavu proizvedene dugotrajne imovine | C183: 415420.26 | F183: 0
A184: 422 Postrojenja i oprema | C184: 415420.26 | F184: 0
A185: 4221 Uredska oprema i namještaj | C185: 11801.71 | F185: 0
A186: 4224 Medicinska i laboratorijska oprema | C186: 391816.84 | F186: 0
A187: 4227 Uređaji, strojevi i oprema za ostale namjene | C187: 11801.71 | F187: 0
A188: 45 Rashodi za dodatna ulaganja na nefinancijskoj imovini | C188: 462037.03 | F188: 0
A189: 451 Dodatna ulaganja na građevinskim objektima | C189: 462037.03 | F189: 0
A190: 4511 Dodatna ulaganja na građevinskim objektima | C190: 462037.03 | F190: 0
A191: A 550221 Osiguranje besplatnih zaliha menstrualnih higijenskih potrepština | D191: 2364.82
A192: Izvor: 521 Pomoći - proračunski korisnici | D192: 2364.82
A193: 38 Ostali rashodi | D193: 2364.82
A194: 381 Tekuće donacije | D194: 2364.82
A195: 3812 Tekuće donacije u naravi | D195: 2364.82
A196: K 550401 Opremanje ustanova školstva | B196: 9302.4 | C196: 15808.51 | D196: 2976.17 | E196: 31.99357155 | F196: 18.82637896
A197: Izvor: 431 Prihodi za posebne namjene - proračunski korisnici | B197: 2209.83 | C197: 8346.65 | E197: 0 | F197: 0
A198: 42 Rashodi za nabavu proizvedene dugotrajne imovine | B198: 2209.83 | C198: 8346.65 | E198: 0 | F198: 0
A199: 422 Postrojenja i oprema | B199: 2209.83 | C199: 7147.57 | E199: =+D199/B199*100 -> 0 | F199: =+D199/C199*100 -> 0
A200: 4221 Uredska oprema i namještaj | C200: 2302.01 | F200: 0
... 28 more rows

Sheet prihodi
A1: PRIHODI POSLOVANJA
A2: II. POSEBNI DIO KONSOLIDIRANOG PRORAČUNA za razdoblje od 01.01.2023. do 30.06.2023. | F2: u EUR-ima
A3: Oznaka | B3: Ostvarenje preth. god. | C3: Godišnji plan/ Rebalans | D3: Ostvarenje | E3: Indeks | F3: Indeks
B4: 1 | C4: 2 | D4: 3 | E4: 4=3/1*100 | F4: 5=3/2*100
A5: SVEUKUPNO | B5: =+B6 -> 1137026.45 | C5: 3657046.27 | D5: =+D6 -> 1342118.77 | E5: =+D5/B5*100 -> 118.0376033 | F5: =+D5/C5*100 -> 36.69952937
A6: MEDICINSKA ŠKOLA U RIJECI | B6: =+B9+B22+B29+B33+B38+B46+B51 -> 1137026.45 | C6: 3657046.27 | D6: =+D9+D14+D18+D22+D29+D33+D38+D46+D51 -> 1342118.77 | E6: =+D6/B6*100 -> 118.0376033 | F6: =+D6/C6*100 -> 36.69952937
A7: Glava: 5 ŽUPANIJSKE USTANOVE SREDNJEG ŠKOLSTVA | B7: =+B6 -> 1137026.45 | C7: 3657046.27 | D7: =+D6 -> 1342118.77 | E7: 118.0376033 | F7: 36.69952937
A8: 17546 MEDICINSKA ŠKOLA RIJEKA | B8: =+B7 -> 1137026.45 | C8: 3657046.27 | D8: =+D6 -> 1342118.77 | E8: 118.0376033 | F8: 36.69952937
A9: Izvor: 1111 Prihodi od zajedničkih prihoda | B9: =+B10 -> 240.1 | C9: 301810.11 | E9: 0 | F9: 0
A10: 67 Prihodi iz nadležnog proračuna i od HZZO-a temeljem ugovornih obveza | B10: =+B11 -> 240.1 | C10: 301810.11 | E10: 0 | F10: 0
A11: 671 Prihodi iz nadležnog proračuna za financiranje redovne djelatnosti proračunskih korisnika | B11: =+B12 -> 240.1 | C11: 301810.11 | E11: 0 | F11: 0
A12: 6711 Prihodi iz nadležnog proračuna za financiranje rashoda poslovanja | B12: 240.1 | C12: 1810.11 | E12: 0 | F12: 0
A13: 6712 Prihodi iz nadležnog proračuna za financiranje rashoda za nabavu nefinancijske imovine | C13: 300000 | F13: 0
A14: Izvor: 1812 Prenesena sredstva - opći prihodi i primici - ugovorne obveze | C14: 87597.05 | D14: 73305.84 | F14: 83.68528392
A15: 67 Prihodi iz nadležnog proračuna i od HZZO-a temeljem ugovornih obveza | C15: 87597.05 | D15: 73305.84 | F15: 83.68528392
A16: 671 Prihodi iz nadležnog proračuna za financiranje redovne djelatnosti proračunskih korisnika | C16: 87597.05 | D16: 73305.84 | F16: 83.68528392
A17: 6711 Prihodi iz nadležnog proračuna za financiranje rashoda poslovanja | C17: 87597.05 | D17: 73305.84 | F17: 83.68528392
A18: Izvor: 1813 Prenesena sredstva - opći prihodi i primici - preostali višak | C18: 20000 | F18: 0
A19: 67 Prihodi iz nadležnog proračuna i od HZZO-a temeljem ugovornih obveza | C19: 20000 | F19: 0
A20: 671 Prihodi iz nadležnog proračuna za financiranje redovne djelatnosti proračunskih korisnika | C20: 20000 | F20: 0
A21: 6711 Prihodi iz nadležnog proračuna za financiranje rashoda poslovanja | C21: 20000 | F21: 0
A22: Izvor: 321501 Vlastiti prihodi - srednje škole i učenički domovi | B22: 8108.11 | C22: 8970.02 | D22: 4927.77 | E22: 60.77581582 | F22: 54.93599791
A23: 64 Prihodi od imovine | B23: 0.1 | E23: 0
A24: 641 Prihodi od financijske imovine | B24: 0.1 | E24: 0
A25: 6413 Kamate na oročena sredstva i depozite po viđenju | B25: 0.1 | E25: 0
A26: 66 Prihodi od prodaje proizvoda i robe te pruženih usluga i prihodi od donacija te povrati po protestiranim jamstvima | B26: 8108.01 | C26: 8970.02 | D26: 4927.77 | E26: 60.7765654 | F26: 54.93599791
A27: 661 Prihodi od prodaje proizvoda i robe te pruženih usluga | B27: 8108.01 | C27: 8970.02 | D27: 4927.77 | E27: 60.7765654 | F27: 54.93599791
A28: 6615 Prihodi od pruženih usluga | B28: 8108.01 | C28: 8970.02 | D28: 4927.77 | E28: 60.7765654 | F28: 54.93599791
A29: Izvor: 431501 Prihodi za posebne namjene - srednje škole i učenički domovi | B29: 1924.48 | C29: 24553.72 | D29: 1111.78 | E29: 57.77041071 | F29: 4.527949329
A30: 65 Prihodi od upravnih i administrativnih pristojbi, pristojbi po posebnim propisima i naknada | B30: 1924.48 | C30: 24553.72 | D30: 1111.78 | E30: 57.77041071 | F30: 4.527949329
A31: 652 Prihodi po posebnim propisima | B31: 1924.48 | C31: 24553.72 | D31: 1111.78 | E31: 57.77041071 | F31: 4.527949329
A32: 6526 Ostali nespomenuti prihodi | B32: 1924.48 | C32: 24553.72 | D32: 1111.78 | E32: 57.77041071 | F32: 4.527949329
A33: Izvor: 4421 Prihodi za decentralizirane funkcije - SŠ | B33: =+B34 -> 85864.27 | C33: 150429 | D33: =+D34 -> 98963.95 | E33: 115.2562643 | F33: 65.78781352
A34: 67 Prihodi iz nadležnog proračuna i od HZZO-a temeljem ugovornih obveza | B34: =+B35 -> 85864.27 | C34: 150429 | D34: =+D35 -> 98963.95 | E34: 115.2562643 | F34: 65.78781352
A35: 671 Prihodi iz nadležnog proračuna za financiranje redovne djelatnosti proračunskih korisnika | B35: =+B36 -> 85864.27 | C35: 150429 | D35: =+D36+D37 -> 98963.95 | E35: 115.2562643 | F35: 65.78781352
A36: 6711 Prihodi iz nadležnog proračuna za financiranje rashoda poslovanja | B36: 85864.27 | C36: 149579 | D36: 98434.39 | E36: 114.6395235 | F36: 65.80762674
A37: 6712 Prihodi iz nadležnog proračuna za financiranje rashoda za nabavu nefinancijske imovine | C37: 850 | D37: 529.56 | F37: 62.30117647
A38: Izvor: 521501 Pomoći - srednje škole i učenički domovi | B38: 1040159.52 | C38: 2184142.44 | D38: 1161180.62 | E38: 111.6348596 | F38: 53.16414345
A39: 63 Pomoći iz inozemstva i od subjekata unutar općeg proračuna | B39: 1040159.52 | C39: 2184142.44 | D39: 1161180.62 | E39: 111.6348596 | F39: 53.16414345
A40: 636 Pomoći proračunskim korisnicima iz proračuna koji im nije nadležan | B40: 1040159.52 | C40: 2074776.25 | D40: 1161180.62 | E40: 111.6348596 | F40: 55.96654675
A41: 6361 Tekuće pomoći proračunskim korisnicima iz proračuna koji im nije nadležan | B41: 1040159.52 | C41: 2074643.53 | D41: 1161180.62 | E41: 111.6348596 | F41: 55.97012707
A42: 6362 Kapitalne pomoći proračunskim korisnicima iz proračuna koji im nije nadležan | C42: 132.72 | F42: 0
A43: 638 Pomoći temeljem prijenosa EU sredstava | C43: 109366.19 | F43: 0
A44: 6381 Tekuće pomoći temeljem prijenosa EU sredstava | C44: 29.41 | F44: 0
A45: 6382 Kapitalne pomoći temeljem prijenosa EU sredstava | C45: 109336.78 | F45: 0
A46: Izvor: 525101 Pomoći za provođenje EU projekata - proračunski korisnici | C46: 877693.32 | F46: 0
A47: 63 Pomoći iz inozemstva i od subjekata unutar općeg proračuna | C47: 877693.32 | F47: 0
A48: 638 Pomoći temeljem prijenosa EU sredstava | C48: 877693.32 | F48: 0
A49: 6381 Tekuće pomoći temeljem prijenosa EU sredstava | C49: 236.02 | F49: 0
A50: 6382 Kapitalne pomoći temeljem prijenosa EU sredstava | C50: 877457.3 | F50: 0
A51: Izvor: 621501 Donacije - srednje škole i učenički domovi | B51: 729.97 | C51: 1850.61 | D51: 2628.81 | E51: 360.1257586 | F51: 142.0509994
A52: 66 Prihodi od prodaje proizvoda i robe te pruženih usluga i prihodi od donacija te povrati po protestiranim jamstvima | B52: 729.97 | C52: 1850.61 | D52: 2628.81 | E52: 360.1257586 | F52: 142.0509994
A53: 663 Donacije od pravnih i fizičkih osoba izvan općeg proračuna i povrat donacija po protestiranim jamstvima | B53: 729.97 | C53: 1850.61 | D53: 2628.81 | E53: 360.1257586 | F53: 142.0509994
A54: 6631 Tekuće donacije | B54: 729.97 | C54: 1319.72 | D54: 1240.08 | E54: 169.880954 | F54: 93.9653866
A55: 6632 Kapitalne donacije | C55: 530.89 | D55: 1388.73 | F55: 261.5852625

Sheet višak-manjak
A4: KORIŠTENJE PRENESENOG VIŠKA
A6: Izvor financiranja 93 Vlastiti prihodi - preneseni višak | G6: u EUR-ima
A7: Račun prihoda/ primitka | B7: Naziv računa | C7: Ostvarenje/ izvršenje 2022. | D7: Tekući plan 2023 | E7: Ostvarenje/ izvršenje 2023. | F7: Indeks | G7: Indeks
A9: 1 | C9: 2 | D9: 4 | E9: 5 | F9: 6=5/2*100 | G9: 7=5/4*100
A10: 922 | B10: Višak/manjak prihoda | C10: =SUM(C11) -> 0 | D10: =SUM(D11) -> 7291.46 | E10: =SUM(E11) -> 2533.51 | G10: =E10/D10*100 -> 34.74626481
A11: 92211 | B11: Višak prihoda poslovanja | C11: 0 | D11: 7291.46 | E11: 2533.51 | G11: =E11/D11*100 -> 34.74626481
A12: UKUPNO Izvor financiranja Vlastiti prihodi - preneseni višak | C12: =C10 -> 0 | D12: =D10 -> 7291.46 | E12: =E10 -> 2533.51 | G12: =E12/D12*100 -> 34.74626481
A14: Izvor financiranja 94 Prihodi za posebne namjene - preneseni višak | G14: u EUR-ima
A15: Račun prihoda/ primitka | B15: Naziv računa | C15: =+C7 -> Ostvarenje/ izvršenje 2022. | D15: =+D7 -> Tekući plan 2023 | E15: =+E7 -> Ostvarenje/ izvršenje 2023. | F15: Indeks | G15: Indeks
A17: 1 | C17: 2 | D17: 4 | E17: 5 | F17: 6=5/2*100 | G17: 7=5/4*100
A18: 922 | B18: Višak/manjak prihoda | C18: =SUM(C19:C20) -> 7112.749353 | D18: =SUM(D19:D20) -> 7615.52 | E18: 2242.2 | F18: =E18/C18*100 -> 31.52367515 | G18: =E18/D18*100 -> 29.44250688
A19: 92211 | B19: Višak prihoda poslovanja | C19: =152.05/7.5345 -> 20.18050302 | D19: 1800 | E19: 1184.32 | F19: =E19/C19*100 -> 5868.634686 | G19: =E19/D19*100 -> 65.79555556
A20: 92212 | B20: Višak prihoda od nefinancijske imovine | C20: =53438.96/7.5345 -> 7092.56885 | D20: 5815.52 | E20: 1057.88 | F20: =E20/C20*100 -> 14.9153293 | G20: =E20/D20*100 -> 18.19063472
A21: UKUPNO Izvor financiranja Prihodi za posebne namjene - preneseni višak | C21: =C18 -> 7112.749353 | D21: =D18 -> 7615.52 | E21: =E18 -> 2242.2 | F21: =E21/C21*100 -> 31.52367515 | G21: =E21/D21*100 -> 29.44250688
A23: Izvor financiranja 95 Pomoći - preneseni višak | G23: u EUR-ima
A24: Račun prihoda/ primitka | B24: Naziv računa | C24: =+C7 -> Ostvarenje/ izvršenje 2022. | D24: =+D7 -> Tekući plan 2023 | E24: =+E7 -> Ostvarenje/ izvršenje 2023. | F24: Indeks | G24: Indeks
A26: 1 | C26: 2 | D26: 4 | E26: 5 | F26: 6=5/2*100 | G26: 7=5/4*100
A27: 922 | B27: Višak/manjak prihoda | C27: =SUM(C28:C29) -> 825.1456633 | D27: =SUM(D28:D29) -> 409.82 | E27: 0 | F27: =E27/C27*100 -> 0 | G27: =E27/D27*100 -> 0
A28: 92211 | B28: Višak prihoda poslovanja | C28: =6217.06/7.5345 -> 825.1456633 | D28: 409.82 | E28: 0 | F28: =E28/C28*100 -> 0 | G28: =E28/D28*100 -> 0
A29: 92212 | B29: Višak prihoda od nefinancijske imovine | G29: =E29/D29*100 -> 
A30: UKUPNO Izvor financiranja Pomoći | C30: =C27 -> 825.1456633 | D30: =D27 -> 409.82 | E30: =E27 -> 0 | F30: =E30/C30*100 -> 0 | G30: =E30/D30*100 -> 0
A34: POKRIĆE MANJKA
A36: Izvor financiranja 95 Pomoći - manjak | G36: u EUR-ima
A37: Račun rashoda/ izdatka | B37: Naziv računa | C37: =+C7 -> Ostvarenje/ izvršenje 2022. | D37: =+D7 -> Tekući plan 2023 | E37: =+E7 -> Ostvarenje/ izvršenje 2023. | F37: Indeks | G37: Indeks
A39: 1 | C39: 2 | D39: 4 | E39: 5 | F39: 6=5/2*100 | G39: 7=5/4*100
A40: 922 | B40: Rezultat poslovanja | C40: =+C41 -> 6508.98268 | D40: =+D41 -> 31154.23 | E40: =+E41 -> 31154.23 | G40: =E40/D40*100 -> 100
A41: 92221 | B41: Manjak prihoda poslovanja | C41: =49041.93/7.5345 -> 6508.98268 | D41: 31154.23 | E41: 31154.23 | G41: =E41/D41*100 -> 100
A42: UKUPNO A/Tpr./Kpr. | C42: =+C41 -> 6508.98268 | D42: =+D41 -> 31154.23 | E42: =+E41 -> 31154.23 | G42: =E42/D42*100 -> 100
